Cogmind - Beta 15 @@@ ROGUE MODE // 2025.06.21 @ 13:29:16 // AFD2020/Player2 Player: Demo Result: Core destroyed Performance ------------- Evolutions (4) 2000 Regions Visited (9) 1800 Robots Destroyed (134) 670 Value Destroyed (5692) 5692 Prototype IDs (7) 140 Alien Tech Used (0) 0 Bonus (7843) 7843 TOTAL SCORE: 18145 Bonus ------- Triggered High Security 500 High Alert Combat Kills 1748 Follower Combat Kills 3904 Entered Garrisons 600 Used RIF Installer 1500 Friendly Fire -409 Cogmind --------- Core Integrity 0/850 Matter 17/300 Energy 900/900 System Corruption 1% Temperature Cool (0) Movement Treading (148) Location -6/Garrison Parts ------- > --- POWER (1) -------- Hybrid Fission Core > --- PROPULSION (4) --- Light Treads Advanced Treads Advanced Treads Advanced Treads > --- UTILITY (8) ------ High-capacity Storage Unit Improved Light Armor Plating Hacking Suite Hacking Suite Hacking Suite Hacking Suite Relay Coupler [NC] (13) Relay Coupler [Hunter] (11) > --- WEAPON (2) ------- Gauss Rifle Mini Grenade Launcher > --- INVENTORY (20) --- Medium Treads Improved Light Armor Plating Medium Reactive Plating Heavy Reactive Plating Thermal Shield Hacking Suite Relay Coupler [NC] (29) Relay Coupler [Specialist] (23) Relay Coupler [Specialist] (27) Relay Coupler [Heavy] (13) Trap Extractor (4/4 Blade) Trap Extractor (4/4 Blade) Trap Extractor (4/4 Segregator) Trap Extractor (4/4 Segregator) Coil Gun Improved Datajack Remote Datajack Plasma Cutter Great Axe Peak State ------------ > --- POWER ------------ Improved Deuterium Engine > --- PROPULSION ------- Advanced Treads Advanced Treads Advanced Treads Advanced Treads > --- UTILITY ---------- High-capacity Storage Unit Improved Signal Interpreter Heavy Reactive Plating Hacking Suite Hacking Suite Hacking Suite Hacking Suite > --- WEAPON ----------- Precision Assault Rifle Great Axe > --- INVENTORY -------- Hybrid Fission Core Advanced Treads Improved Sensor Array Medium Reactive Plating Heavy Reactive Plating Relay Coupler [NC] Relay Coupler [NC] Relay Coupler [Specialist] Relay Coupler [Specialist] Relay Coupler [Heavy] Trap Extractor Trap Extractor Trap Extractor Trap Extractor Mini Grenade Launcher Mini Grenade Launcher Improved Datajack Remote Datajack Plasma Cutter [Rating: 57] Favorites ----------- Power Reinforced Ion Engine Engine Reinforced Ion Engine Power Core Light Nuclear Core Propulsion Armored Wheel Treads Advanced Treads Wheel Armored Wheel Flight Unit Improved Flight Unit Utility Hacking Suite Device Seismic Detector Storage High-capacity Storage Unit Processor Improved Signal Interpreter Hackware Hacking Suite Protection Improved Light Armor Plating Weapon Great Axe Energy Gun Improved Medium Laser Energy Cannon Advanced Beam Cannon Ballistic Gun Assault Rifle Launcher Mini Grenade Launcher Special Weapon Remote Datajack Slashing Weapon Great Axe Special Melee Weapon Improved Datajack Build | -11 -10 -9 -9 -8 -8 -7 -7 -6 -6 ------- Run | Yrd Mat Mat Min Mat Gar Fac Gar Fac Gar Slots Evolved 8 | . . 2 . 2 . 2 . 2 . Power . | . . . . . . . . . . Propulsion 2 | . . . . 2 . . . . . Utility 6 | . . 2 . . . 2 . 2 . Weapon . | . . . . . . . . . . Parts Attached 111 | 7 6 16 1 13 22 9 11 24 2 Power 9 | 1 . 1 . 1 3 . 1 1 1 Engine 6 | 1 . 1 . 1 1 . 1 1 . Core 3 | . . . . . 2 . . . 1 Reactor . | . . . . . . . . . . Propulsion 29 | 2 3 2 1 3 9 . 1 8 . Treads 8 | 1 1 . . . . . . 6 . Leg . | . . . . . . . . . . Wheel 20 | 1 2 1 1 3 9 . 1 2 . Hover . | . . . . . . . . . . Flight 1 | . . 1 . . . . . . . Utility 50 | 2 3 8 . 7 2 7 8 12 1 Device 10 | 1 . 2 . . . 2 4 1 . Storage 5 | 1 3 . . . . . . 1 . Processor 1 | . . . . . . . . 1 . Hackware 14 | . . . . 2 1 4 1 5 1 Protection 20 | . . 6 . 5 1 1 3 4 . Artifact . | . . . . . . . . . . Weapon 23 | 2 . 5 . 2 8 2 1 3 . Energy Gun 4 | 1 . 1 . 1 1 . . . . Energy Cannon 2 | . . 2 . . . . . . . Ballistic Gun 6 | 1 . . . 1 . 1 . 3 . Ballistic Cannon . | . . . . . . . . . . Launcher 4 | . . 1 . . 2 . 1 . . Special Weapon 2 | . . . . . 1 1 . . . Impact Weapon . | . . . . . . . . . . Slashing Weapon 4 | . . . . . 4 . . . . Piercing Weapon . | . . . . . . . . . . Special Melee Weapon 1 | . . 1 . . . . . . . Unidentified Prototypes 6 | . . 4 . . . 1 1 . . Parts Lost 20 | . . 2 1 1 7 1 2 5 1 Power 2 | . . . . . 1 . . . 1 Propulsion 13 | . . 1 1 1 6 1 . 3 . Utility 2 | . . . . . . . 2 . . Weapon 3 | . . 1 . . . . . 2 . Highest Loss Streak 3 | . . 1 1 1 3 1 1 3 1 To Critical Strikes . | . . . . . . . . . . Average Backups 18 | 3 13 21 19 19 19 19 19 18 18 Power . | . . . . . . 1 . . . Propulsion 2 | 2 6 5 2 . 1 1 1 . 1 Utility 9 | . 4 7 7 8 10 11 11 12 12 Weapon 3 | . 2 6 9 7 4 2 2 2 2 Tool/Special . | . . . . . . . . . . Unused Backups 55 | . 3 21 . 5 8 4 5 1 8 Power 1 | . . . . . . 1 . . . Propulsion 11 | . 2 6 . . 1 . 1 . 1 Utility 31 | . . 10 . 3 5 1 4 1 7 Weapon 9 | . 1 3 . 2 2 1 . . . Tool/Special 3 | . . 2 . . . 1 . . . Average Slot Usage (%) 97 | . 100 93 100 96 96 99 99 97 99 Engine 7 | . 14 11 11 9 3 7 7 6 1 Core 1 | . . . . . 5 . . . 4 Treads 6 | . 14 2 . . . . . 16 26 Wheel 21 | . 13 19 22 32 32 29 30 8 . Device 4 | . 14 10 11 3 . . . 2 . Storage 8 | . 14 11 11 9 9 7 7 6 6 Hackware 17 | . . . . 11 19 27 23 28 33 Protection 9 | . . 15 22 12 7 8 13 8 12 Energy Gun 4 | . 14 7 11 9 5 2 . . . Energy Cannon 1 | . . 6 11 3 . . . . . Ballistic Gun 5 | . 14 7 . 5 2 1 2 4 7 Launcher 1 | . . . . . 2 . 4 1 . Slashing Weapon 3 | . . . . . 7 6 6 3 3 Special Melee Weapon 1 | . . . . . . 4 . 1 . Peak Build Rating 57 | 7 9 21 21 26 33 41 41 57 51 Average Rating 30 | 6 8 15 20 24 27 36 38 49 49 On Entrance 24 | . 7 9 21 21 26 28 41 39 48 Naked Turns . | . . . . . . . . . . Heaviest Build 97 | 14 89 97 65 66 60 70 70 93 63 Greatest Support 88 | 16 16 26 26 58 58 48 48 88 86 Greatest Overweight (x) 9 | . 8 9 2 2 2 1 1 1 . Average Overweight (x) 1 | . 5 3 2 . . 1 1 . . Largest Inventory Capacity 25 | 8 25 25 20 20 20 20 20 20 20 Average Capacity 20 | 7 23 22 20 20 20 20 20 20 20 Most Carried 25 | 7 20 25 20 20 20 20 20 20 20 Average Carried 18 | 3 14 21 19 19 19 19 19 19 19 Final Capacity 25 | 8 25 20 20 20 20 20 20 20 20 Final Carried 20 | 7 20 20 19 19 20 18 20 20 20 Class Distribution -------------------- 30% | Mutant 21% | Trapper-Mutant 18% | Scavenger-Mutant 16% | Bothacker-Mutant 9% | Hacker-Mutant 3% | Commander-Mutant Dominant Class ---------------- Mutant | -10/Materials Mutant | -9/Materials Mutant | -9/Mines Scavenger-Mutant | -8/Materials Hacker-Mutant | -8/Garrison Scavenger-Mutant | -7/Factory Bothacker-Mutant | -7/Garrison Trapper-Mutant | -6/Factory Trapper-Mutant | -6/Garrison Resources | -11 -10 -9 -9 -8 -8 -7 -7 -6 -6 ----------- Run | Yrd Mat Mat Min Mat Gar Fac Gar Fac Gar Matter Collected 3265 | 330 190 388 110 167 482 346 370 683 199 Remotely . | . . . . . . . . . . Salvage Created 4879 | 229 381 718 134 292 1059 79 784 964 239 Parts 257 | 14 35 48 9 19 45 2 37 40 8 Haulers Intercepted 6 | . 1 3 . . . . . 2 . Recyclers Shooed 5 | . 1 1 2 1 . . . . . Parts Field Recycled . | . . . . . . . . . . Retrieved Matter . | . . . . . . . . . . Parts Self-Destructed . | . . . . . . . . . . Prevented . | . . . . . . . . . . Kills | -11 -10 -9 -9 -8 -8 -7 -7 -6 -6 ------- Run | Yrd Mat Mat Min Mat Gar Fac Gar Fac Gar Combat Hostiles Destroyed 95 | . 7 16 3 4 22 2 16 16 9 Melee 9 | . . . . . 6 . 2 . 1 Guns 28 | . 7 6 . 2 4 2 . 5 2 Cannons 7 | . . 2 3 2 . . . . . AOE 51 | . . 8 . . 12 . 14 11 6 Classes Destroyed 17 | 3 3 4 . 1 1 . 1 2 2 Worker 11 | 2 4 2 . . . . . 3 . Builder 4 | . . 1 . . . . . 3 . Tunneler 6 | 5 . . 1 . . . . . . Hauler 6 | . 1 3 . . . . . 2 . Recycler 6 | 1 1 1 . 1 . . . 2 . Operator 3 | . . 2 . 1 . . . . . Watcher 2 | . . 1 . 1 . . . . . Swarmer 37 | . 4 6 1 1 12 . 12 . 1 Cutter 2 | . . . . . . . 2 . . Grunt 41 | . 3 6 2 1 6 2 1 13 7 Duelist 1 | . . . . 1 . . . . . Protector 1 | . . . . . . . . . 1 Sentry 10 | . . 4 . 1 3 . 1 1 . Hunter 1 | . . . . . . . . 1 . Programmer 1 | . . . . . . . . 1 . Behemoth 1 | . . . . . 1 . . . . Executioner 1 | . . . . . . . . . 1 Best Kill Streak 12 | 6 3 10 3 1 12 1 5 11 8 Combat Bots Only 12 | . 2 6 3 1 12 1 5 7 8 Max Kills in Single Turn 8 | 1 1 2 1 1 4 1 3 8 2 Gunslinging . | . . . . . . . . . . Exploded 5 | . . 2 . . 4 . 3 5 2 Melee 1 | . . . . . 1 . 1 . 1 Uniques/NPCs Destroyed . | . . . . . . . . . . Combat | -11 -10 -9 -9 -8 -8 -7 -7 -6 -6 -------- Run | Yrd Mat Mat Min Mat Gar Fac Gar Fac Gar Hostile Shots Fired 628 | . 23 39 16 67 71 69 63 225 55 Missed 210 | . 6 14 6 20 19 24 19 82 20 Hits 418 | . 17 25 10 47 52 45 44 143 35 Melee 1 | . . . . . 1 . . . . Projectile 417 | . 17 25 10 47 51 45 44 143 35 AOE 9 | . . . 2 . . . 2 1 4 Critical Strikes 13 | . . 1 . 2 2 2 . 5 1 Damage Taken 5986 | . 158 392 192 465 734 699 607 1987 752 Core 626 | . 12 27 24 32 122 50 68 149 142 Absorbed by Shields 265 | . . . . . . . . 43 222 Ignored by Resistances 199 | . . . . . . . 7 192 . Regen/Repaired (Parts) 1116 | . 342 . . 31 19 356 . 368 . Core Remaining (%) 60 | 100 9 . 62 . 56 . 75 . . Volleys Fired 309 | 20 40 39 14 26 46 23 12 68 21 Largest 2 | 2 2 2 2 2 2 1 2 2 2 Hottest 124 | 60 60 124 124 124 88 65 60 58 58 Shots Fired 465 | 40 80 67 28 49 53 23 13 88 24 Gun 335 | 40 80 43 14 40 34 17 . 57 10 Cannon 36 | . . 13 14 9 . . . . . Launcher 81 | . . 11 . . 18 . 12 27 13 Special 13 | . . . . . 1 6 1 4 1 Kinetic 181 | 20 40 24 . 14 11 5 . 57 10 Thermal 191 | 20 40 32 28 35 24 12 . . . Explosive 81 | . . 11 . . 18 . 12 27 13 Electromagnetic . | . . . . . . . . . . Robot Hit Streak 13 | 6 6 5 5 6 8 5 7 13 5 Robot Miss Streak 8 | 3 7 4 4 8 4 8 1 3 2 Penetration Max 1 | . . . . . . . . 1 1 Secondary Targets 2 | . 1 1 . . . . . . . Max Gunslinging Chain 1 | . 1 1 . . . . . . . Shots Hit Robots 353 | 19 44 28 17 24 69 31 37 69 15 Core Hits 272 | 9 18 38 7 12 44 15 36 66 27 Critical Kills 1 | . . . . 1 . . . . . Critical Parts Destroyed . | . . . . . . . . . . Critical Strikes 15 | . . . . 1 7 1 6 . . Destroy 1 | . . . . 1 . . . . . Sever 14 | . . . . . 7 1 6 . . Melee Attacks 247 | . . . . . 100 15 78 32 22 Impact . | . . . . . . . . . . Slashing 222 | . . . . . 98 4 78 20 22 Piercing . | . . . . . . . . . . Sneak Attacks 24 | . . . . . 2 10 1 11 . Combat Hostiles . | . . . . . . . . . . Follow-up Attacks . | . . . . . . . . . . Damage Inflicted 15606 | 237 525 1243 323 423 3550 271 3426 3904 1704 Guns 3009 | 237 525 347 138 361 249 236 . 729 187 Cannons 339 | . . 92 185 62 . . . . . Explosions 7005 | . . 804 . . 919 . 1249 2600 1433 Melee 5253 | . . . . . 2382 35 2177 575 84 Ramming . | . . . . . . . . . . Kinetic 1713 | 100 296 106 . 154 60 81 . 729 187 Thermal 1635 | 137 229 333 323 269 189 155 . . . Explosive 7005 | . . 804 . . 919 . 1249 2600 1433 Electromagnetic . | . . . . . . . . . . Impact . | . . . . . . . . . . Slashing 5253 | . . . . . 2382 35 2177 575 84 Piercing . | . . . . . . . . . . Highest Corruption 1 | . . . . . . . . 1 1 Average Corruption 1 | . . . . . . . . 1 1 Corruption Purged . | . . . . . . . . . . Corruption Blocked . | . . . . . . . . . . Effects 7 | . . . . . . . . . 7 Message Errors 3 | . . . . . . . . . 3 Matter Fused 3 | . . . . . . . . . 3 Heat Flow Errors 1 | . . . . . . . . . 1 Overload Shots . | . . . . . . . . . . Overflow Damage 367 | . . 1 12 . 128 . 151 30 45 Projectiles 12 | . . . 12 . . . . . . Explosions 91 | . . 1 . . 17 . 3 30 40 Melee 264 | . . . . . 111 . 148 . 5 Knockbacks . | . . . . . . . . . . Impact . | . . . . . . . . . . Kinetic . | . . . . . . . . . . Secondary . | . . . . . . . . . . Self-Inflicted Damage 159 | . . . . . . . 54 103 2 Shots 7 | . . . . . . . 2 4 1 Rammed . | . . . . . . . . . . Targets Rammed . | . . . . . . . . . . Kicked . | . . . . . . . . . . Crushed . | . . . . . . . . . . Highest Temperature 246 | 15 1 180 172 246 70 105 28 28 211 Average Temperature 49 | 10 1 37 51 105 24 39 14 12 87 Received Heat Transfer 1975 | . 18 162 33 117 461 231 159 617 177 Siege Activations . | . . . . . . . . . . Martial Activations . | . . . . . . . . . . Shielding Activations . | . . . . . . . . . . Robots Disrupted . | . . . . . . . . . . Combat Hostiles . | . . . . . . . . . . Robots Corrupted . | . . . . . . . . . . Combat Hostiles . | . . . . . . . . . . Parts Fried . | . . . . . . . . . . Impact Corruptions . | . . . . . . . . . . Robots Melted . | . . . . . . . . . . Combat Hostiles . | . . . . . . . . . . Parts Melted 5 | . 1 1 1 1 1 . . . . Heat Transferred 3207 | 300 525 703 629 555 320 175 . . . Parts Sabotaged . | . . . . . . . . . . Parts Stolen . | . . . . . . . . . . Parts Stripped . | . . . . . . . . . . Power Chain Reactions . | . . . . . . . . . . Alert | -11 -10 -9 -9 -8 -8 -7 -7 -6 -6 ------- Run | Yrd Mat Mat Min Mat Gar Fac Gar Fac Gar Maximum Alert Level 5 | . 1 2 1 2 5 4 5 5 5 Low Security (%) 15 | 100 49 54 . 19 . . . . . Level 1 14 | . 50 15 100 50 9 . . . . Level 2 7 | . . 30 . 29 16 . . . . Level 3 25 | . . . . . 7 85 10 57 . Level 4 26 | . . . . . 41 14 55 36 97 Level 5 9 | . . . . . 25 . 34 5 2 High Security . | . . . . . . . . . . Max Security . | . . . . . . . . . . Peak Influence 2003 | 10 282 591 356 494 1829 1345 2003 1790 1662 Initial 1253 | . . 78 228 122 314 959 935 1051 1253 Average 860 | 2 174 269 319 306 1193 927 1463 1109 1369 Influence Increases 8685 | 40 638 1007 248 582 1675 1032 1138 1784 541 Destroy 0b10 Robot/C 4090 | . 340 540 160 320 780 420 420 855 255 Destroy 0b10 Robot/NC 393 | 40 60 65 10 25 45 20 40 84 4 Destroy Leader 730 | . 80 150 30 82 30 114 32 188 24 Allied During Kill 1632 | . 111 176 48 109 313 253 191 317 114 Successful Hack 132 | . 15 18 . 11 . 69 . 19 . Disable Machine 267 | . . 30 . 30 15 . 60 132 . Anti-Garrison Action 777 | . . . . . 300 150 251 . 76 Destroy Structure 622 | . 2 28 . 5 192 6 132 189 68 Lose Combat Pursuer 42 | . 30 . . . . . 12 . . Influence Decreases 7031 | 40 453 605 519 414 330 1524 472 1997 677 Entered New Map 3591 | . . 107 359 194 170 870 402 952 537 Time Decay 2285 | 40 393 478 120 190 . 514 . 550 . Lost Part 560 | . 60 20 40 10 120 10 20 160 120 Lost Ally 320 | . . . . 20 40 130 50 60 20 Purge Threat 275 | . . . . . . . . 275 . Squads Dispatched 44 | . 4 5 . 5 . 12 . 18 . Investigation 14 | . 1 1 . 2 . 6 . 4 . Extermination 5 | . . . . . . 2 . 3 . Reinforcement 12 | . 3 4 . 1 . . . 4 . Assault 5 | . . . . . . 2 . 3 . Garrison 8 | . . . . 2 . 2 . 4 . Intercept . | . . . . . . . . . . Searches Triggered . | . . . . . . . . . . Construction Impeded 3 | . . 1 . 1 . . . 1 . Haulers Reinforced 2 | . . . . . . . . 2 . Active Scanning Responses . | . . . . . . . . . . Cargo Convoy Interrupts . | . . . . . . . . . . Stealth | -11 -10 -9 -9 -8 -8 -7 -7 -6 -6 --------- Run | Yrd Mat Mat Min Mat Gar Fac Gar Fac Gar Distress Signals 8 | . . 3 . 1 . 1 . 3 . Communications Jammed . | . . . . . . . . . . Distress Signals . | . . . . . . . . . . Times Spotted 251 | . 25 37 10 18 44 22 25 48 22 Peak Tracking Total 11 | . 7 10 4 7 8 6 8 9 11 Tactical Retreats 2 | . 1 . . . . . 1 . . Traps | -11 -10 -9 -9 -8 -8 -7 -7 -6 -6 ------- Run | Yrd Mat Mat Min Mat Gar Fac Gar Fac Gar Traps Triggered 11 | . . 1 . . 4 1 4 1 . Indirectly . | . . . . . . . . . . Trap Hack Attempts 36 | . . 1 . . . 35 . . . Triggered . | . . . . . . . . . . Disarmed . | . . . . . . . . . . Reprogrammed 9 | . . 1 . . . 8 . . . Reused . | . . . . . . . . . . Traps Extracted 8 | . . . . . . 8 . . . Installed . | . . . . . . . . . . Triggered . | . . . . . . . . . . Most Traps Carried 16 | . . . . . . 8 16 16 16 Machines | -11 -10 -9 -9 -8 -8 -7 -7 -6 -6 ---------- Run | Yrd Mat Mat Min Mat Gar Fac Gar Fac Gar Machines Disabled 34 | . . 2 . 2 7 1 9 11 2 Max in Single Turn 2 | . . . . 1 1 . 1 2 1 Garrison Access 1 | . . . . . . 1 . . . Garrison Relay 9 | . . . . . 4 . 4 . 1 Machines Repaired . | . . . . . . . . . . Machines Dismantled . | . . . . . . . . . . Machines Sabotaged . | . . . . . . . . . . Overloaded Fab Kills . | . . . . . . . . . . Hacking | -11 -10 -9 -9 -8 -8 -7 -7 -6 -6 --------- Run | Yrd Mat Mat Min Mat Gar Fac Gar Fac Gar Machines Accessed 42 | . 5 4 . 5 3 10 4 10 1 Terminals 25 | . 4 4 . 3 3 4 4 2 1 Fabricators 4 | . . . . . . 1 . 3 . Repair Stations 4 | . 1 . . 1 . 1 . 1 . Recycling Units 3 | . . . . . . 1 . 2 . Scanalyzers 1 | . . . . . . 1 . . . Garrison Access 5 | . . . . 1 . 2 . 2 . Total Hacks 127 | . 17 11 . 15 6 36 7 32 3 Successful 92 | . 8 6 . 10 3 30 4 30 1 Failed 35 | . 9 5 . 5 3 6 3 2 2 Catastrophic 6 | . 1 2 . . 2 1 . . . Database Lockouts . | . . . . . . . . . . Manual 64 | . 10 9 . 10 2 17 1 15 . Terminals 65 | . 15 11 . 9 6 10 7 4 3 Fabricators 16 | . . . . . . 6 . 10 . Repair Stations 14 | . 2 . . 1 . 5 . 6 . Recycling Units 13 | . . . . . . 5 . 8 . Scanalyzers 4 | . . . . . . 4 . . . Garrison Access 15 | . . . . 5 . 6 . 4 . Terminal Hacks 21 | . 2 3 . 2 3 5 4 1 1 Record 1 | . . 1 . . . . . . . Part Schematic 2 | . 1 1 . . . . . . . Robot Schematic 1 | . . . . . . 1 . . . Open Door 2 | . . . . . 1 . 1 . . Branch Access Points 3 | . . . . 1 . 1 . 1 . Emergency Access Points 3 | . . . . . 1 . 1 . 1 Locate Traps 3 | . 1 . . . . 2 . . . Registered Components 3 | . . 1 . 1 . 1 . . . Garrison Registry 2 | . . . . . 1 . 1 . . Patrol Navigation 1 | . . . . . . . 1 . . Fabricator Hacks 10 | . . . . . . 3 . 7 . Network Status 2 | . . . . . . 1 . 1 . Load Schematic 4 | . . . . . . 1 . 3 . Build 4 | . . . . . . 1 . 3 . Repair Station Hacks 12 | . 2 . . . . 4 . 6 . Scan Component 6 | . 1 . . . . 2 . 3 . Repair 6 | . 1 . . . . 2 . 3 . Recycling Unit Hacks 3 | . . . . . . 1 . 2 . Retrieve Components 3 | . . . . . . 1 . 2 . Scanalyzer 4 | . . . . . . 4 . . . Insert Component 2 | . . . . . . 2 . . . Analyze 2 | . . . . . . 2 . . . Garrison Access Hacks 4 | . . . . 1 . 2 . 1 . Unlock Access 4 | . . . . 1 . 2 . 1 . Unauthorized Hacks 38 | . 4 3 . 7 . 11 . 13 . Terminals 14 | . 4 3 . 3 . 2 . 2 . Botnet 13 | . 4 2 . 3 . 2 . 2 . Operators 1 | . . 1 . . . . . . . Fabricators 5 | . . . . . . 2 . 3 . Report 1 | . . . . . . 1 . . . Fabnet 4 | . . . . . . 1 . 3 . Repair Stations 2 | . . . . 1 . 1 . . . Patch 2 | . . . . 1 . 1 . . . Recycling Units 9 | . . . . . . 4 . 5 . Monitor 2 | . . . . . . 1 . 1 . Reject 2 | . . . . . . 1 . 1 . Recyclers 2 | . . . . . . 1 . 1 . Mask 3 | . . . . . . 1 . 2 . Scanalyzers . | . . . . . . . . . . Garrison Access 8 | . . . . 3 . 2 . 3 . Broadcast 1 | . . . . . . . . 1 . Reprogram 5 | . . . . 1 . 2 . 2 . Intercept 1 | . . . . 1 . . . . . Watchers 1 | . . . . 1 . . . . . Data Cores Recovered 1 | . . 1 . . . . . . . Used . | . . . . . . . . . . Hacking Detections 35 | . 4 3 . 4 2 10 3 8 1 Full Trace Events 7 | . 1 . . . . 3 . 2 1 Feedback Events . | . . . . . . . . . . Feedback Blocked . | . . . . . . . . . . Robot Schematics Acquired 1 | . . . . . . 1 . . . Robots Built 2 | . . . . . . . . 2 . Authchips 1 | . . . . . . . . 1 . Time 174 | . . . . . . . . 174 . Total Robot Build Rating 6 | . . . . . . . . 6 . Part Schematics Acquired 4 | . 1 1 . . . 2 . . . Parts Built 3 | . . . . . . 2 . 1 . Authchips . | . . . . . . . . . . Time 67 | . . . . . . 31 . 36 . Total Part Build Rating 7 | . . . . . . 4 . 3 . Parts Repaired 6 | . 1 . . . . 2 . 3 . Time 228 | . 26 . . . . 82 . 120 . Parts Recycled . | . . . . . . . . . . Recycled Matter . | . . . . . . . . . . Retrieved Matter . | . . . . . . . . . . Retrieved Components 16 | . . . . . . 3 . 13 . Parts Scanalyzed 2 | . . . . . . 2 . . . Part Schematics Acquired 2 | . . . . . . 2 . . . Parts Damaged . | . . . . . . . . . . Bothacking | -11 -10 -9 -9 -8 -8 -7 -7 -6 -6 ------------ Run | Yrd Mat Mat Min Mat Gar Fac Gar Fac Gar Used RIF Installer 3 | . . . . . 1 . 2 . . Threat Obfuscator 1 | . . . . . . . 1 . . Watcher Feeds 1 | . . . . . . . 1 . . Robots Hacked 20 | . . . . . 1 10 1 7 1 Non-combat 15 | . . . . . 1 8 . 6 . Combat 5 | . . . . . . 2 1 1 1 Robot Hacks Applied 27 | . . . . . 1 13 1 11 1 parse_system 3 | . . . . . . 2 . 1 . generate_echo 1 | . . . . . . 1 . . . map_earth 2 | . . . . . . 1 . 1 . find_fabricator 2 | . . . . . . 1 . 1 . drop_inventory 3 | . . . . . . 1 . 2 . ignore_parts 1 | . . . . . . . . 1 . purge_threat 2 | . . . . . . . . 2 . reprogram_traps 1 | . . . . . . . . 1 . amplify_resonance 3 | . . . . . . 2 . . 1 streamctrl_low 3 | . . . . . . 3 . . . formatsys_low 4 | . . . . . 1 2 . 1 . formatsys_high 2 | . . . . . . . 1 1 . Relay Couplers Released 35 | . . . . . 16 1 13 . 5 Machine Destruction 35 | . . . . . 16 1 13 . 5 Attached 8 | . . . . . 1 2 1 3 1 Fabnet Peak Effective % 3 | . . . . . . . . 3 3 Robots Rewired 11 | . . . . . 6 . 4 . 1 Allies Hacked . | . . . . . . . . . . Hacks Repelled . | . . . . . . . . . . Allies | -11 -10 -9 -9 -8 -8 -7 -7 -6 -6 -------- Run | Yrd Mat Mat Min Mat Gar Fac Gar Fac Gar Total Allies 30 | . 1 . . 3 7 8 5 5 1 Largest Group 10 | . 1 1 1 4 8 10 6 5 3 Highest-Rated Group 280 | . 58 69 69 126 247 280 240 230 262 Highest-Rated Ally 119 | . 58 69 69 80 85 99 101 111 119 Total Orders 8 | . . . . . 1 4 3 . . STAY 2 | . . . . . . 1 1 . . ROAM 1 | . . . . . . . 1 . . FOLLOW 3 | . . . . . . 2 1 . . AID 2 | . . . . . 1 1 . . . Ally Attacks 430 | . 38 23 19 30 75 93 29 92 31 Total Damage 17893 | . 653 677 420 990 2319 2338 1888 7169 1439 Kills 168 | . 16 14 8 14 17 23 12 55 9 Allies Corrupted . | . . . . . . . . . . Allies Melted . | . . . . . . . . . . Intel | -11 -10 -9 -9 -8 -8 -7 -7 -6 -6 ------- Run | Yrd Mat Mat Min Mat Gar Fac Gar Fac Gar Active Infowar (turns) 3228 | 62 1022 1214 246 140 . . . 544 . Sensors 544 | . . . . . . . . 544 . Seismic 2684 | 62 1022 1214 246 140 . . . . . Robot Analysis Total . | . . . . . . . . . . Derelict Logs Recovered . | . . . . . . . . . . Drone Launches . | . . . . . . . . . . Drone Recoveries . | . . . . . . . . . . Exploration | -11 -10 -9 -9 -8 -8 -7 -7 -6 -6 ------------- Run | Yrd Mat Mat Min Mat Gar Fac Gar Fac Gar Turns Passed 9123 | 166 1022 1221 246 399 1431 1400 1244 1601 393 Spaces Moved 5450 | 90 468 747 129 250 873 1048 845 816 184 Core 8 | 8 . . . . . . . . . Treads 599 | . . . . . . . . 415 184 Legs . | . . . . . . . . . . Wheels 4843 | 82 468 747 129 250 873 1048 845 401 . Hover . | . . . . . . . . . . Flight . | . . . . . . . . . . Fastest Speed 50 | 50 100 120 120 95 90 105 105 105 148 Average Speed 121 | 95 172 136 120 104 100 105 105 141 148 Slowest Speed 225 | 100 200 215 120 120 120 105 105 225 148 Overloaded Moves . | . . . . . . . . . . Propulsion Burnouts . | . . . . . . . . . . Robots Hopped . | . . . . . . . . . . Potential Cave-ins . | . . . . . . . . . . Cave-ins Triggered . | . . . . . . . . . . Exploration Rate (%) 43 | 4 81 71 21 20 73 16 92 22 35 Regions Visited 9 Branch Regions 1 Pre-discovered Areas . | . . . . . . . . . . Known Exits Taken 3 | . . . . 1 . 1 . 1 . Unknown Exits Taken 4 | 1 1 1 1 . . . . . . Scrap Searched . | . . . . . . . . . . Spaces Dug 80 | . . . . . 25 1 39 4 11 Terrain Destroyed 344 | . . 37 1 . 111 1 72 78 44 Melee 32 | . . . . . . 1 16 4 11 Projectile 4 | . . . 1 . . . . 2 1 AOE 308 | . . 37 . . 111 . 56 72 32 Terrain Rammed . | . . . . . . . . . . Walls Destroyed . | . . . . . . . . . . Machines Disabled . | . . . . . . . . . . Actions | -11 -10 -9 -9 -8 -8 -7 -7 -6 -6 --------- Run | Yrd Mat Mat Min Mat Gar Fac Gar Fac Gar Total 7125 | 126 603 899 192 342 1220 1317 1050 1135 241 Wait 592 | 3 69 9 49 28 89 149 44 149 3 Move 5441 | 89 467 746 128 249 872 1047 844 815 184 Hop . | . . . . . . . . . . Pick Up 128 | 7 15 34 . 11 23 10 14 13 1 Fast Attach 46 | 7 . 9 . 6 4 3 1 16 . Attach 36 | . . 4 1 5 6 6 5 8 1 Detach 1 | . . . . . . . . 1 . Swap 101 | . 7 14 . 2 21 18 17 15 7 Drop 125 | . 5 43 . 15 22 10 12 18 . Fire 309 | 20 40 39 14 26 46 23 12 68 21 Melee 245 | . . . . . 98 15 78 32 22 Ram . | . . . . . . . . . . Kick . | . . . . . . . . . . Crush . | . . . . . . . . . . Escape Stasis 16 | . . . . . 8 . 8 . . Rewire 49 | . . . . . 31 1 15 . 2 Trap 36 | . . 1 . . . 35 . . . Miscellaneous . | . . . . . . . . . . Route ------- -11/Scrapyard -10/Materials (discovered 4 exits: *Mat x2 / [*Min] / [*Sub]) -9/Materials (discovered 3 exits: *Mat / [*Min] / [*Sto]) -9/Mines -8/Materials -8/Garrison (discovered 4 exits: *Fac x3 / [Mat]) -7/Factory (discovered 3 exits: Low x2 / Gar) -7/Garrison (discovered 3 exits: *Fac x3) -6/Factory (discovered 4 exits: [*Fac] / *Low x2 / Gar) -6/Garrison History --------- Turn | Location | Event 2 | -11/Scrapyard | Met Revision 17 14 | -11/Scrapyard | Discovered new exit (range 15) 167 | -11/Scrapyard | Entered Materials 315 | -10/Materials | Build established: Mutant 370 | -10/Materials | Core integrity fell below 50% 593 | -10/Materials | Discovered new exit (range 10) 721 | -10/Materials | Discovered new exit (range 7) 805 | -10/Materials | Repaired Huge Storage Unit 926 | -10/Materials | Core integrity fell below 20% 984 | -10/Materials | Discovered new exit (range 10) 1037 | -10/Materials | Discovered new exit (range 11) 1189 | -10/Materials | Entered another Materials area 1189 | -9/Materials | Evolved 2 slots: Utility x2 1189 | -9/Materials | Discovered new exit (range 15) 1766 | -9/Materials | Discovered new exit (range 16) 2203 | -9/Materials | Discovered new exit (range 7) 2410 | -9/Materials | Entered Mines 2411 | -9/Mines | Assembled infested the area 2416 | -9/Mines | Assisted by a Guerilla fighting off Assembled 2442 | -9/Mines | Met a Derelict bent on vengeance 2556 | -9/Mines | Discovered new exit (range 9) 2656 | -9/Mines | Entered Materials 2656 | -8/Materials | Evolved 2 slots: Propulsion x2 2921 | -8/Materials | Garrison activated, responded to threat 2985 | -8/Materials | Identified exit to Garrison 3055 | -8/Materials | Entered Garrison 3055 | -8/Garrison | Accompanied by 2 allies 3080 | -8/Garrison | Build established: Scavenger-Mutant 3167 | -8/Garrison | Triggered checkpoint 3184 | -8/Garrison | Garrison Relay disabled 3296 | -8/Garrison | Triggered checkpoint 3411 | -8/Garrison | Triggered checkpoint 3422 | -8/Garrison | Triggered checkpoint 3426 | -8/Garrison | Triggered checkpoint 3447 | -8/Garrison | Destroyed 12 combat bots 3519 | -8/Garrison | Triggered checkpoint 3640 | -8/Garrison | Installed Relay Interface Framework 3651 | -8/Garrison | Triggered checkpoint 3669 | -8/Garrison | Garrison Relay disabled 3708 | -8/Garrison | Discovered new exit (range 11) 3799 | -8/Garrison | Discovered new exit (range 12) 3800 | -8/Garrison | Spotted B-75 Beast 3823 | -8/Garrison | Triggered checkpoint 3846 | -8/Garrison | Destroyed B-75 Beast 3857 | -8/Garrison | Build established: Hacker-Mutant 3864 | -8/Garrison | Lost 3 parts (3n) 3960 | -8/Garrison | Discovered new exit (range 26) 3960 | -8/Garrison | Discovered new exit (range 45) 3960 | -8/Garrison | Discovered new exit (range 57) 3960 | -8/Garrison | Discovered new exit (range 35) 4074 | -8/Garrison | Garrison Relay disabled 4119 | -8/Garrison | Garrison Relay disabled 4381 | -8/Garrison | Build established: Bothacker-Mutant 4486 | -8/Garrison | Entered Factory 4486 | -7/Factory | Accompanied by 7 allies 4486 | -7/Factory | Evolved 2 slots: Utility x2 4549 | -7/Factory | Repaired Lyr. Medium Armor Plating 4599 | -7/Factory | Identified exit to Garrison 4816 | -7/Factory | Identified exit to Lower Caves 5022 | -7/Factory | Fabricated Trap Extractor (x2) 5135 | -7/Factory | Build established: Scavenger-Mutant 5278 | -7/Factory | P-60 Hacker assimilated allied W5-DZX(g) 5577 | -7/Factory | Garrison activated, responded to threat 5644 | -7/Factory | Identified exit to Garrison 5766 | -7/Factory | Lost 3 allies 5838 | -7/Factory | Repaired Arm. Wheel 5886 | -7/Factory | Entered Garrison 5886 | -7/Garrison | Accompanied by 2 allies 5916 | -7/Garrison | Build established: Hacker-Mutant 5972 | -7/Garrison | Triggered checkpoint 5996 | -7/Garrison | Garrison Relay disabled 6016 | -7/Garrison | Garrison Relay disabled 6057 | -7/Garrison | Expanded RIF knowledge: Threat Obfuscation 6156 | -7/Garrison | Triggered checkpoint 6164 | -7/Garrison | Triggered checkpoint 6240 | -7/Garrison | Triggered checkpoint 6242 | -7/Garrison | Triggered checkpoint 6278 | -7/Garrison | Expanded RIF knowledge: Watcher Feeds 6428 | -7/Garrison | Discovered new exit (range 5) 6446 | -7/Garrison | Discovered new exit (range 55) 6446 | -7/Garrison | Discovered new exit (range 66) 6446 | -7/Garrison | Discovered new exit (range 12) 6466 | -7/Garrison | Triggered checkpoint 6480 | -7/Garrison | Build established: Bothacker-Mutant 6484 | -7/Garrison | Garrison Relay disabled 6702 | -7/Garrison | Triggered checkpoint 7024 | -7/Garrison | Triggered checkpoint 7025 | -7/Garrison | Garrison Relay disabled 7130 | -7/Garrison | Entered Factory 7130 | -6/Factory | Accompanied by 3 allies 7130 | -6/Factory | Evolved 2 slots: Utility x2 7275 | -6/Factory | Spotted B-75 Beast 7297 | -6/Factory | Allies destroyed B-75 Beast 7396 | -6/Factory | Identified exit to Lower Caves 7429 | -6/Factory | Fabricated O-24 Administrator (x1) 7480 | -6/Factory | First assault squad dispatched 7571 | -6/Factory | Build established: Trapper-Mutant 7629 | -6/Factory | Lost 3 allies 7721 | -6/Factory | Found Hvy. Reactive Plating 7732 | -6/Factory | Found Hvy. Reactive Plating 8072 | -6/Factory | Destroyed 7 combat bots 8204 | -6/Factory | Fabricated Hacking Suite (x1) 8208 | -6/Factory | Fabricated O-24 Administrator (x1) 8297 | -6/Factory | Lost 3 parts (2n1w) 8419 | -6/Factory | Garrison activated, responded to threat 8451 | -6/Factory | Repaired Great Axe 8490 | -6/Factory | Repaired Adv. Treads 8529 | -6/Factory | Repaired Adv. Treads 8575 | -6/Factory | Discovered new exit (range 10) 8590 | -6/Factory | Identified exit to Garrison 8722 | -6/Factory | Garrison activated, responded to threat 8722 | -6/Factory | High security lockdown imminent 8731 | -6/Factory | Entered Garrison 8731 | -6/Garrison | Accompanied by 1 ally 8820 | -6/Garrison | Spotted Executioner 8841 | -6/Garrison | Core integrity fell below 50% 8850 | -6/Garrison | Destroyed Executioner 8858 | -6/Garrison | Rewired Executioner 9065 | -6/Garrison | Triggered checkpoint 9067 | -6/Garrison | Triggered checkpoint 9092 | -6/Garrison | Triggered checkpoint 9095 | -6/Garrison | Core integrity fell below 20% 9124 | -6/Garrison | Core destroyed Last Messages --------------- 09106_ Acquired 23 matter. 09107_ Player 2 suffers critical hit (Burn). 09109_ The unstable cave ceiling collapses. 09109_ G-67 Veteran suffers critical hit (Impale). 09111_ Player 2 suffers critical hit (Burn). 09112_ The unstable cave ceiling collapses. 09112_ Angel 5a destroyed. 09113_ G-67 Veteran destroyed. 09115_ Critical hit (Burn: +50). 09116_ Destroyed Adv. Heat Sink. 09116_ G-67 Veteran destroyed. 09116_ G-50 Soldier suffers critical hit (Burn). 09119_ The unstable cave ceiling collapses. 09119_ Acquired 29 matter. 09122_ G-50 Soldier destroyed. 09122_ Destroyed Hvy. Laser. 09122_ G-50 Soldier destroyed. 09123_ Player 2 suffers critical hit (Burn). 09124_ Destroyed Imp. Light Armor Plating. Map ----- +----------------------------------------------------+ | #????????????????????????????????? | | #????????????????????????????????? | | #????????????????????????????????? | | #???????????????????+?????+??????? | | #????????????????????????????????+ | | #????????????????????????????????? | | #?????????????????????????+??????? | | #????????????????????????????????? | | ############## #????????????????????????????????? | | ?????????????# #????????????????????????????????? | | ?????????????# #????????????????????????????????? | | ?????????????# #????????????????????+??????????+? | | ?????????????# #??????????????????? #???????????? | | ?????????????# #?????????????####? #???????????? | | ?????????????# #??????????##!% ## #???????????? | | ?????????????# #??????######%= # ##??????????? | | ############## ######## %* *% ###????????? | | [%[ " ???????? | | ^ = #??????????? | | "#####"#####"########### ## #??????????? | | ##???##????###???????### ## ## #??????????? | | ?????????????????????#C "?+????????? | | ?????????????????????#C! "??????????? | | ?????????????????????#C% = [ "??????????? | | ?????????????????????+ = = "?+????????? | | ?????????????????????### @ % #??????????? | | ?????????????????????# #??????????? | | ?????????????????????# @ %g #??????????? | | ???????????????????? g *= #?????????? | | ??????????????????# ## [ %=[ ##?????????? | | ??????????????????#??# %## #! #??????????? | | ?????????????????????# # #? ??????????? | | ?????????????????????#### ##+####?? #??????????? | | ????????????????????????#p #????????? #??????????? | | ?????????????+??????????+ +?????????????????????? | | ????????????????????????# #?????????????????????? | | ????????????????????????# #?????????????+???????? | | ????????????????????????# #?????????????????????? | | ????????++??????????????? #?????????????????????? | | ???????????????????+????? ??????????????????????? | | ???????+???+????????????? ?????????+????++?????+? | | ???????+???+?????????????????????????????????????? | | ???????????????????+?????????????????????????????? | | ?????????????????????????????????????????++?????+? | | ?????????????????????????????????????????????????? | | ????????????????????????????????????????+????????? | | ???????????+???+?????????????????????????????????? | | ????????+????????????????????????????????????????? | | ?????????????????????????????????????????????????? | | ?????????????????????????????????????????????????? | +----------------------------------------------------+ Best States ------------- Heat Dissipation 37 Energy Generation 16 Energy Capacity 900 Matter Stores 300 Matter Capacity 300 Sight Range 16 Robot Scan Range 15 Terrain Scan Density 10 Armor Coverage 600 Resistance: KI 40 Resistance: TH 10 Core Shielding 20 Evasion (%) 50 Recoil Reduction 4 Offensive Hacking 40 Relay Coupler Types 2 Relay Coupler Value 31 Authchip Count 1 Trap Extractor Capacity 8 Item Schematics ----------------- Huge Storage Unit | -10/Materials | Hacked Trap Extractor | -9/Materials | Hacked Hacking Suite | -7/Factory | Scanalyzed Arm. Wheel | -7/Factory | Scanalyzed Robot Schematics ------------------ O-24 Administrator | -7/Factory | Hacked Fabricated ------------ Trap Extractor | x2 | -7/Factory O-24 Administrator | x1 | -6/Factory | Authchip Hacking Suite | x1 | -6/Factory O-24 Administrator | x1 | -6/Factory Repaired ---------- Huge Storage Unit | 43% | -10/Materials Lyr. Medium Armor Plating | 57% | -7/Factory Arm. Wheel | 15% | -7/Factory Great Axe | 10% | -6/Factory Adv. Treads | 2% | -6/Factory Adv. Treads | 10% | -6/Factory Alien Tech Used ----------------- None Achievements -------------- None Challenges ------------ None Player 2 | -11 -10 -9 -9 -8 -8 -7 -7 -6 -6 ---------- Run | Yrd Mat Mat Min Mat Gar Fac Gar Fac Gar Slots Evolved 8 | . 2 . 2 . 2 . 2 . . Power 1 | . . . . . 1 . . . . Propulsion 1 | . 1 . . . . . . . . Utility 3 | . . . 1 . . . 2 . . Weapon 3 | . 1 . 1 . 1 . . . . Parts Attached 96 | . 23 10 4 9 13 8 1 23 5 Parts Lost 36 | . 6 . 3 . 5 . . 11 11 Damage Taken 6085 | . 704 133 526 145 886 92 119 2244 1236 Core 1023 | . 214 19 81 7 77 14 43 238 330 Player 2/Cogmind (%) 62 | . 94 41 77 17 38 21 38 61 69 Absorbed by Shields 332 | . . . . . . . . 56 276 Damage Inflicted 13994 | . 653 677 420 863 1783 1040 1573 6124 861 Player 2/Cogmind (%) 47 | . 55 35 56 67 33 79 31 61 33 Combat Hostiles Destroyed 100 | . 10 11 7 10 9 7 6 35 5 Player 2/Cogmind (%) 51 | . 58 40 70 71 29 77 27 68 35 Game ------ Seed WarpLegShifter Manual? 0 Play Time 01:22:02 Cumulative 286.1 hours Start 2025.06.21 @ 12:11:02 End 2025.06.21 @ 13:29:16 Sessions 1 Manual Loads 0 Difficulty Rogue Special Mode AFD2020/Player2 Game No. 256 Rogue 256 Adventurer 0 Explorer 0 Win Type - Total 2 Types 1/1/0/0/0/0/0/0/0/0 Lore% 76 Gallery% 80 Achievement% 72 Wizard Run 0 Options --------- Layout 1 ASCII 0 Keyboard 0 Movement Numpad Keybinds 0 Fullscreen 1 Font 24/Smallcaps Map View 50x35 Zoom Use 0% Tactical HUD 1 Map Filters NONE Filters NONE Steam 1 RUN: bf9b593b-6941-40f4-85c5-40f09d230403